bitfinex/quotes_BTCUSD_20250829
["timestamp","ask_amount","ask_price","bid_price","bid_amount"]
[1756480393394,0.02574963,108510.0,108500.0,0.18734179]
[1756480393596,0.9345812,108510.0,108500.0,0.18932179]
[1756480394001,0.9367012,108510.0,108500.0,0.18631179]
[1756480394419,0.04554322,108510.0,108500.0,0.18932179]
[1756480394603,0.95437479,108510.0,108500.0,0.18932179]
[1756480395184,0.04554322,108510.0,108500.0,0.18932179]
[1756480395603,0.04554322,108510.0,108500.0,0.29855693]
[1756480396220,1.14397959,108510.0,108500.0,0.18433179]
[1756480396448,1.14397959,108510.0,108500.0,0.17832941]
[1756480396891,0.95966479,108510.0,108500.0,0.17832941]
[1756480397107,1.14397959,108510.0,108500.0,0.17832941]
[1756480397317,0.23514802,108510.0,108500.0,0.17832941]
[1756480397539,1.14397959,108510.0,108500.0,0.17832941]
[1756480398387,0.23514802,108510.0,108500.0,0.17832941]
[1756480398596,1.14397959,108510.0,108500.0,0.17832941]
[1756480398829,0.23514802,108510.0,108500.0,0.17832941]
[1756480399005,1.14397959,108510.0,108500.0,0.17832941]
[1756480399648,0.23197802,108510.0,108500.0,0.18030941]
[1756480399872,0.04554322,108510.0,108500.0,0.18337941]
[1756480400332,0.04554322,108510.0,108500.0,1.20144612]
[1756480400555,0.02574963,108510.0,108500.0,0.29261455]
[1756480400791,0.02574963,108510.0,108500.0,1.20144612]
[1756480401011,0.02574963,108510.0,108500.0,1.58312834]
[1756480401240,0.02574963,108510.0,108500.0,0.67429677]
[1756480401496,0.02574963,108510.0,108500.0,0.67629677]
[1756480401936,0.02574963,108510.0,108500.0,0.67929677]
[1756480402378,0.00858321,108510.0,108500.0,1.60642395]
[1756480402513,0.00858321,108510.0,108500.0,1.61342395]
[1756480402943,0.00858321,108510.0,108500.0,0.68429677]
[1756480403350,0.00858321,108510.0,108500.0,1.08429677]
[1756480403761,1.12588869,108540.0,108520.0,0.18428286]
[1756480403971,0.00195,108530.0,108520.0,0.18428286]
[1756480404207,0.01914904,108530.0,108520.0,0.18428286]
[1756480404421,0.02774449,108530.0,108520.0,0.18428286]
[1756480404626,0.21521533,108530.0,108520.0,0.18428286]
[1756480405262,1.12252546,108530.0,108520.0,0.18428286]
[1756480405452,0.21521533,108530.0,108520.0,0.18428286]
[1756480405663,0.21521533,108530.0,108520.0,0.18626286]
[1756480405913,0.21521533,108530.0,108520.0,0.18428286]
[1756480406359,0.21521533,108530.0,108520.0,0.18626286]
[1756480406593,0.21521533,108530.0,108520.0,0.18428286]
[1756480406801,0.21521533,108530.0,108510.0,0.267452]
[1756480407014,0.21521533,108530.0,108520.0,0.18429782]
[1756480407227,0.21521533,108530.0,108520.0,0.18627782]
[1756480407437,0.21521533,108530.0,108520.0,0.18429782]
[1756480407828,0.21521533,108530.0,108510.0,0.35267832]
[1756480408026,0.91050013,108520.0,108510.0,0.27610508]
[1756480408267,0.02774449,108520.0,108510.0,0.27808508]
[1756480408675,0.02774449,108520.0,108510.0,0.25516626]
[1756480408676,0.21523231,108520.0,108510.0,0.25516626]
[1756480409060,0.1843148,108510.0,108490.0,0.33963051]
[1756480409259,1.12060942,108510.0,108500.0,0.18433179]
[1756480409418,0.21524929,108510.0,108500.0,0.18433179]
[1756480409820,0.02774449,108510.0,108500.0,0.18631179]
[1756480410255,1.12255942,108510.0,108490.0,0.37368135]
[1756480410465,1.10536038,108510.0,108500.0,0.18433179]
[1756480410664,0.00859545,108510.0,108500.0,0.18938179]
[1756480411074,0.00859545,108510.0,108500.0,0.19238179]
[1756480411284,0.01054545,108510.0,108500.0,0.19238179]
[1756480411486,0.00859545,108510.0,108500.0,0.19238179]
[1756480411733,0.19486025,108510.0,108500.0,0.18931179]
[1756480412081,1.53715599,108510.0,108500.0,0.003]
[1756480412295,1.46254099,108510.0,108500.0,0.003]
[1756480412496,1.46254099,108510.0,108500.0,0.18931179]
[1756480412497,0.55204086,108510.0,108500.0,0.18931179]
[1756480412708,0.55523086,108510.0,108500.0,0.003]
[1756480412922,1.46254099,108510.0,108500.0,0.003]
[1756480413726,1.46254099,108510.0,108500.0,0.005]
[1756480414143,1.46254099,108510.0,108500.0,0.003]
[1756480414460,1.46254633,108510.0,108490.0,0.25522731]
[1756480414992,0.18433179,108500.0,108490.0,0.25522731]
[1756480415167,1.10537779,108500.0,108490.0,0.25522731]
[1756480415406,1.10537779,108500.0,108490.0,0.07088]
[1756480416733,0.18434878,108490.0,108480.0,0.18435434]
[1756480416975,1.09360891,108490.0,108480.0,0.18435434]
[1756480417246,0.18948878,108490.0,108480.0,0.18435434]
[1756480417687,0.18948878,108490.0,108470.0,0.73649947]
[1756480417820,1.09679891,108490.0,108470.0,0.75282453]
[1756480418034,1.09486591,108480.0,108470.0,0.00014304]
[1756480418503,1.09681591,108480.0,108470.0,0.00014304]
[1756480418691,0.18631578,108480.0,108470.0,0.18650581]
[1756480418870,1.09362591,108480.0,108470.0,0.18650581]
[1756480419254,1.10222126,108480.0,108470.0,0.18750581]
[1756480419460,1.10222126,108480.0,108470.0,0.00312304]
[1756480419664,1.10541126,108480.0,108470.0,0.00114304]
[1756480419869,0.19810113,108480.0,108470.0,0.00114304]
[1756480420076,1.10541126,108480.0,108470.0,0.00114304]
[1756480420283,0.19810113,108480.0,108470.0,0.00114304]
[1756480420491,1.10541126,108480.0,108470.0,0.00114304]
[1756480420875,1.10541126,108480.0,108470.0,0.00314304]
[1756480421311,1.09681591,108480.0,108470.0,0.00114304]
[1756480421531,1.18511223,108480.0,108470.0,0.00114304]
[1756480421768,1.21089688,108480.0,108470.0,0.00214304]
[1756480421971,1.21089688,108480.0,108470.0,0.00514304]
[1756480422172,1.21089688,108480.0,108470.0,0.00414304]
[1756480422578,1.55089688,108480.0,108470.0,0.00414304]
[1756480422791,1.6391932,108480.0,108470.0,0.00414304]
[1756480423241,1.6391932,108480.0,108470.0,0.00614304]
[1756480423659,1.55089688,108480.0,108470.0,0.00614304]
[1756480424314,1.53370706,108480.0,108470.0,0.00514304]
[1756480424732,1.53470706,108480.0,108470.0,0.00514304]
[1756480424955,1.53470215,108480.0,108470.0,0.00014304]
[1756480425360,1.52611223,108480.0,108470.0,0.00014304]
[1756480425564,1.61540855,108480.0,108470.0,0.00014304]
[1756480425765,1.61221855,108480.0,108470.0,0.00014304]
[1756480425972,1.52392223,108480.0,108470.0,0.00212304]
[1756480426190,1.52711223,108480.0,108470.0,0.00014304]
[1756480426399,0.34395,108480.0,108470.0,0.00014304]
[1756480426616,0.002,108480.0,108470.0,0.19188059]
[1756480426875,0.002,108480.0,108470.0,0.18957581]
[1756480427492,0.18435034,108490.0,108480.0,0.18436578]
[1756480427705,0.18435034,108490.0,108480.0,0.18634578]
[1756480427846,0.18435034,108490.0,108480.0,0.18941578]
[1756480428727,0.18630034,108490.0,108480.0,0.00198]
[1756480428883,1.09361047,108490.0,108480.0,0.00198]
[1756480429253,1.09361047,108490.0,108480.0,0.18634578]
[1756480429422,0.18434878,108490.0,108480.0,0.18958578]
[1756480429985,0.21010922,108490.0,108480.0,0.18958578]
[1756480430207,0.21010922,108490.0,108480.0,0.18634578]
[1756480430208,1.11939935,108490.0,108480.0,0.18634578]
[1756480430414,0.18436578,108480.0,108470.0,0.20870463]
[1756480430622,1.09165891,108490.0,108480.0,0.18436578]
[1756480430825,1.11939607,108490.0,108480.0,0.18645578]
[1756480431027,1.13264217,108490.0,108480.0,0.18645578]
[1756480431311,0.94829339,108490.0,108480.0,0.18645578]
[1756480431486,0.22533204,108490.0,108480.0,0.18969578]
[1756480431692,0.94829339,108490.0,108480.0,0.18969578]
[1756480431960,1.13264014,108490.0,108480.0,0.18645578]
[1756480432183,0.18436578,108480.0,108470.0,0.29826095]
[1756480432422,0.21210091,108480.0,108470.0,0.19111581]
[1756480432633,0.02575513,108480.0,108470.0,0.19111581]
[1756480432844,0.02773513,108480.0,108470.0,0.19111581]
[1756480433055,0.02575513,108480.0,108470.0,0.19435581]
[1756480433272,0.02575513,108480.0,108470.0,0.19135581]
[1756480433901,0.02575513,108480.0,108470.0,0.30059095]
[1756480434104,0.02575513,108480.0,108470.0,1.20890108]
[1756480434312,0.02772,108500.0,108490.0,0.18434878]
[1756480434544,0.27229469,108520.0,108510.0,0.1843148]
[1756480434545,0.20198382,108520.0,108510.0,0.1843148]
[1756480434747,0.26690953,108520.0,108510.0,0.1843148]
[1756480435369,1.15704968,108520.0,108510.0,0.1843148]
[1756480435597,1.16636771,108520.0,108510.0,0.1864048]
[1756480435748,0.25905758,108520.0,108510.0,0.1864048]
[1756480435965,1.16940772,108520.0,108500.0,0.18755641]
[1756480436190,0.25905759,108520.0,108510.0,0.1874048]
[1756480436359,1.16940772,108520.0,108510.0,0.1853148]
[1756480436557,1.16940772,108520.0,108510.0,0.001]
[1756480436989,0.1843148,108510.0,108500.0,0.20525523]
[1756480437196,0.03418261,108510.0,108500.0,0.20734523]
[1756480437420,0.03220261,108510.0,108500.0,0.21158523]
[1756480437557,0.02576209,108510.0,108500.0,0.29988155]
[1756480437972,0.02576209,108510.0,108500.0,0.63988155]
[1756480438935,0.02576209,108510.0,108500.0,0.63888155]
[1756480439550,0.02576209,108510.0,108500.0,0.63988155]
[1756480440313,0.00858736,108510.0,108500.0,0.64088155]
[1756480440520,0.19645122,108520.0,108510.0,0.1843148]
[1756480440720,0.22529761,108520.0,108510.0,0.1843148]
[1756480440931,0.22727761,108520.0,108510.0,0.1843148]
[1756480441484,0.03994197,108520.0,108510.0,0.1864048]
[1756480441707,0.22727979,108520.0,108510.0,0.1843148]
[1756480441906,0.1843148,108510.0,108500.0,0.63679155]
[1756480442186,0.02580982,108510.0,108500.0,0.63888155]
[1756480443484,0.02580982,108510.0,108500.0,0.64088155]
[1756480443692,0.93509995,108510.0,108500.0,0.20725523]
[1756480443907,0.02778982,108510.0,108500.0,0.20934523]
[1756480444123,0.02580982,108510.0,108500.0,0.21258523]
[1756480444325,0.02580982,108510.0,108500.0,0.21358523]
[1756480444463,0.02580982,108510.0,108500.0,0.21608523]
[1756480444671,1.07345612,108520.0,108510.0,0.1843148]
[1756480444892,1.07543612,108520.0,108510.0,0.1843148]
[1756480445242,0.18429782,108520.0,108510.0,0.1896448]
[1756480445650,0.18627782,108520.0,108510.0,0.1896448]
[1756480445858,1.47177776,108530.0,108520.0,0.18429782]
[1756480446037,1.47177776,108530.0,108520.0,0.18962782]
[1756480446038,0.01906788,108530.0,108520.0,0.18962782]
[1756480446240,0.20532872,108530.0,108520.0,0.18962782]
[1756480446456,1.11263885,108530.0,108520.0,0.18962782]
[1756480446645,1.11263885,108530.0,108510.0,0.2584348]
[1756480446875,1.11263885,108530.0,108520.0,0.18429782]
[1756480447105,0.18429782,108520.0,108510.0,0.27613362]
[1756480447306,0.19689754,108530.0,108510.0,0.21058362]
[1756480447514,0.18627782,108520.0,108510.0,0.1843148]
[1756480447956,1.09358795,108520.0,108500.0,0.46227299]
[1756480448172,1.09662795,108520.0,108500.0,0.46227299]
[1756480448624,0.18627782,108520.0,108510.0,0.00209]
[1756480448821,0.1843148,108510.0,108500.0,0.47997181]
[1756480449060,0.20711158,108530.0,108510.0,0.02093882]
[1756480449061,0.02885627,108530.0,108510.0,0.02093882]
[1756480449278,0.00114327,108530.0,108520.0,0.29562296]
[1756480449493,0.00014327,108530.0,108520.0,0.29886296]
[1756480449750,0.00114327,108530.0,108520.0,0.29886296]
[1756480450184,0.00014327,108530.0,108520.0,0.36974296]
[1756480451256,0.00014327,108530.0,108520.0,0.41186182]
[1756480452203,0.00014327,108530.0,108520.0,1.31917195]
[1756480453944,0.00014327,108530.0,108520.0,1.34687395]
[1756480454564,0.00014327,108530.0,108520.0,1.35924643]
[1756480456701,0.00014327,108530.0,108520.0,0.4519363]
[1756480456904,0.00872472,108530.0,108520.0,1.35924643]
[1756480457110,0.00722472,108530.0,108520.0,1.35924643]
[1756480457310,0.00722472,108530.0,108520.0,0.43956382]
[1756480458323,0.00920472,108530.0,108520.0,0.43632382]
[1756480458525,0.00920472,108530.0,108520.0,0.385593]
[1756480458735,0.02636049,108530.0,108520.0,0.40869182]
[1756480459144,0.02636049,108530.0,108520.0,0.40653182]
[1756480459349,1.11795146,108530.0,108520.0,0.25517782]
[1756480459556,0.93367062,108530.0,108520.0,0.18429782]
[1756480459759,0.02636049,108530.0,108520.0,0.18429782]
[1756480460100,0.02438049,108530.0,108520.0,0.18960782]
[1756480460301,0.02648049,108530.0,108520.0,0.18645782]
[1756480460774,0.02648049,108530.0,108520.0,0.18429782]
[1756480461296,0.21076133,108530.0,108520.0,0.18429782]
[1756480461505,0.02648049,108530.0,108520.0,0.18429782]
[1756480461708,0.02648049,108530.0,108520.0,0.18645782]
[1756480462530,0.02649318,108530.0,108520.0,0.18429782]
[1756480462766,0.18429782,108520.0,108510.0,0.1843148]
[1756480462969,1.09463097,108530.0,108520.0,0.18429782]
[1756480463178,1.11179645,108530.0,108510.0,0.1843148]
[1756480463383,1.14228176,108530.0,108510.0,0.1843148]
[1756480464018,1.16999176,108530.0,108510.0,0.1843148]
[1756480464622,1.16999176,108530.0,108520.0,0.18429782]
[1756480464957,0.24073641,108530.0,108520.0,0.18429782]
[1756480465181,1.16999176,108530.0,108520.0,0.18429782]
[1756480465388,1.14815556,108530.0,108520.0,0.18429782]
[1756480465862,0.24073641,108530.0,108520.0,0.18429782]
[1756480466074,1.14173629,108530.0,108520.0,0.18429782]
[1756480466278,1.14818115,108530.0,108520.0,0.18429782]
[1756480466483,1.14818115,108530.0,108510.0,0.1843148]
[1756480467316,0.18429782,108520.0,108510.0,0.1843148]
[1756480467534,1.11100327,108520.0,108500.0,0.55401719]
[1756480467749,1.12049172,108520.0,108500.0,0.29101719]
[1756480467950,1.12049172,108520.0,108510.0,0.1843148]
[1756480468152,0.21003257,108520.0,108510.0,0.1843148]
[1756480468330,1.11745172,108520.0,108510.0,0.1843148]
[1756480468537,1.12049172,108520.0,108500.0,0.28786719]
[1756480468740,0.1843148,108510.0,108500.0,0.07338]
[1756480468940,1.11406025,108510.0,108500.0,0.0025]
[1756480469146,0.21523922,108510.0,108500.0,0.0025]
[1756480469339,0.24295522,108510.0,108500.0,0.18683179]
[1756480469542,0.23991522,108510.0,108500.0,0.18683179]
[1756480469865,0.23992863,108510.0,108500.0,0.18683179]
[1756480470080,0.23992863,108510.0,108500.0,0.0055]
[1756480470276,1.24513365,108510.0,108500.0,0.0055]
[1756480470502,1.58513365,108510.0,108500.0,0.0055]
[1756480470880,1.34924968,108510.0,108500.0,0.0055]
[1756480471086,1.56128248,108510.0,108500.0,0.0055]
[1756480472058,1.55996248,108510.0,108500.0,0.0055]
[1756480472260,1.55996248,108510.0,108500.0,0.0075]
[1756480472482,1.6493288,108510.0,108500.0,0.0045]
[1756480472895,1.6513288,108510.0,108500.0,0.0045]
[1756480473206,1.65132675,108510.0,108500.0,0.0025]
[1756480473521,1.65232675,108510.0,108500.0,0.0025]
[1756480475040,1.64827838,108510.0,108500.0,0.0025]
[1756480475456,1.57333716,108510.0,108500.0,0.0025]
[1756480475662,0.66591801,108510.0,108500.0,0.0025]
[1756480475871,1.57333716,108510.0,108500.0,0.0025]
[1756480476323,1.57333716,108510.0,108500.0,0.00466]
[1756480476569,1.57333716,108510.0,108500.0,0.0025]
[1756480476768,1.66163348,108510.0,108500.0,0.0025]
[1756480477920,0.75421433,108510.0,108500.0,0.0025]
[1756480478127,1.66163348,108510.0,108500.0,0.0025]
[1756480478490,1.66162684,108510.0,108500.0,0.0025]
[1756480479410,1.66269684,108510.0,108500.0,0.0025]
[1756480479638,7.57011599,108510.0,108500.0,0.0025]
[1756480480335,7.56911599,108510.0,108500.0,0.0025]
[1756480480555,6.66069684,108510.0,108500.0,0.0025]
[1756480481012,7.56811599,108510.0,108500.0,0.0025]
[1756480481486,7.56711599,108510.0,108500.0,0.0025]
[1756480481954,6.66069684,108510.0,108500.0,0.0025]
[1756480482396,5.75327769,108510.0,108500.0,0.0025]
[1756480482605,6.66269684,108510.0,108500.0,0.0025]
[1756480483037,6.67400205,108510.0,108500.0,0.0025]
[1756480484599,1.67293205,108510.0,108500.0,0.0025]
[1756480485059,7.5814212,108510.0,108500.0,0.0025]
[1756480485262,1.09178493,108480.0,108470.0,0.0736143]
[1756480485399,1.10893228,108480.0,108470.0,0.0767643]
[1756480485654,0.21651445,108480.0,108470.0,0.0789243]
[1756480485828,0.21651445,108480.0,108470.0,0.26330707]
[1756480486028,0.2165077,108480.0,108470.0,0.26330707]
[1756480486227,0.21650438,108480.0,108470.0,0.19119277]
[1756480486679,0.21650438,108480.0,108470.0,0.19133604]
[1756480487149,0.21650438,108480.0,108470.0,0.00995327]
[1756480487352,1.14654338,108480.0,108470.0,0.00995327]
[1756480487929,1.14654338,108480.0,108470.0,0.19433604]
[1756480488342,1.15876246,108480.0,108470.0,0.19433604]
[1756480489802,0.22229581,108480.0,108470.0,0.19433604]
[1756480490421,1.15233481,108480.0,108470.0,0.19433604]
[1756480491005,1.15233481,108480.0,108470.0,0.00995327]
[1756480491223,1.1587606,108480.0,108470.0,0.00995327]
[1756480491437,1.1604806,108480.0,108470.0,0.00995327]
[1756480491845,1.1587606,108480.0,108470.0,0.00995327]
[1756480492060,1.1587606,108480.0,108470.0,0.19433604]
[1756480493327,1.24877692,108480.0,108470.0,0.00464327]
[1756480494583,1.67707324,108480.0,108470.0,0.00464327]
[1756480495414,1.67557324,108480.0,108470.0,0.00364327]
[1756480495928,1.67657324,108480.0,108470.0,0.00364327]
[1756480496145,2.58240129,108480.0,108470.0,0.00364327]
[1756480496341,2.59204053,108480.0,108470.0,0.00364327]
[1756480496756,2.59204053,108480.0,108470.0,0.00164327]
[1756480496919,2.60646884,108480.0,108470.0,0.00164327]
[1756480497108,2.60746884,108480.0,108470.0,0.00164327]
[1756480497557,2.60646884,108480.0,108470.0,0.00164327]
[1756480497964,2.60439884,108480.0,108470.0,0.00164327]
[1756480498379,2.60739884,108480.0,108470.0,0.00164327]
[1756480499413,2.6282104,108480.0,108470.0,0.00164327]
[1756480499619,1.11443877,108460.0,108450.0,0.0052]
[1756480499791,0.1993948,108460.0,108450.0,0.19307467]
[1756480499997,0.1993948,108460.0,108450.0,0.19519467]
[1756480500234,1.1294338,108460.0,108450.0,0.01077789]
[1756480500526,0.01499503,108460.0,108450.0,0.19519467]
[1756480501204,0.01499503,108460.0,108450.0,1.27591679]
[1756480501422,0.00856876,108460.0,108450.0,1.34683679]
[1756480502084,0.00856876,108460.0,108450.0,1.37455979]
[1756480503201,0.00856876,108460.0,108450.0,1.37555979]
[1756480503412,0.00856876,108460.0,108450.0,1.35344672]
[1756480503623,0.00856876,108460.0,108450.0,1.35244672]
[1756480503835,0.00856876,108460.0,108450.0,1.35544672]
[1756480504039,0.00856876,108460.0,108450.0,1.35744672]
[1756480504263,0.00856876,108460.0,108450.0,0.44952079]
[1756480504472,0.00856876,108460.0,108450.0,1.35744672]
[1756480504685,0.00856876,108460.0,108450.0,0.44952079]
[1756480505558,1.12418042,108480.0,108460.0,0.18438297]
[1756480505768,1.15897733,108480.0,108460.0,0.18438297]
[1756480505973,1.16069733,108480.0,108460.0,0.18438297]
[1756480506178,1.16069748,108480.0,108460.0,0.18736297]
[1756480506405,0.18438277,108470.0,108460.0,0.18736297]
[1756480506620,1.12418042,108480.0,108470.0,0.18438277]
[1756480506841,1.12418042,108480.0,108470.0,0.1834782]
[1756480506842,0.25278766,108480.0,108470.0,0.1834782]
[1756480507255,1.16071321,108480.0,108470.0,0.0051]
[1756480507466,1.17789053,108480.0,108460.0,0.18736297]
[1756480507700,0.2699646,108480.0,108470.0,0.18650277]
[1756480507918,0.98258588,108480.0,108470.0,0.18948277]
[1756480508613,0.07465995,108480.0,108470.0,0.18948277]
[1756480508852,0.03220431,108480.0,108470.0,1.20664384]
[1756480509275,0.03220431,108480.0,108470.0,0.29871791]
[1756480509490,0.03220431,108480.0,108470.0,1.20664384]
[1756480509696,0.03220431,108480.0,108470.0,0.29871791]
[1756480511868,0.03220431,108480.0,108470.0,0.30371791]
[1756480512772,0.03221302,108480.0,108470.0,0.30671791]
[1756480514793,0.03221302,108480.0,108470.0,0.33443691]
[1756480515012,0.03221302,108480.0,108470.0,1.24236284]
[1756480515221,0.03221302,108480.0,108470.0,1.24717112]
[1756480515458,0.03768331,108520.0,108510.0,0.1843148]
[1756480515668,0.0486446,108520.0,108510.0,0.15339712]
[1756480515875,0.95657053,108520.0,108510.0,0.15339712]
[1756480516309,0.0469246,108520.0,108510.0,0.15339712]
[1756480516535,0.0486446,108520.0,108510.0,0.15339712]
[1756480516960,0.0486446,108520.0,108510.0,0.14829712]
[1756480516961,1.14186835,108520.0,108510.0,0.14829712]
[1756480517402,0.0496446,108520.0,108510.0,0.14829712]
[1756480517644,0.95857053,108520.0,108510.0,0.14829712]
[1756480517869,0.0506446,108520.0,108510.0,0.15339712]
[1756480518086,0.0489246,108520.0,108510.0,0.15339712]
[1756480518377,0.95685053,108520.0,108510.0,0.15339712]
[1756480518589,0.95857053,108520.0,108510.0,0.15339712]
[1756480519031,0.95857053,108520.0,108510.0,0.15342712]
[1756480519032,0.95585053,108520.0,108510.0,0.15342712]
[1756480519498,0.95657053,108520.0,108510.0,0.15342712]
[1756480519711,1.02515411,108520.0,108510.0,0.14829712]
[1756480519896,0.95657053,108520.0,108510.0,0.15442712]
[1756480520173,0.95485053,108520.0,108510.0,0.15442712]
[1756480520392,0.91446677,108520.0,108510.0,0.15642712]
[1756480521022,0.91446677,108520.0,108510.0,0.15129712]
[1756480521244,0.91446677,108520.0,108510.0,0.15642712]
[1756480521470,0.00654084,108520.0,108510.0,0.15437712]
[1756480521696,0.91446677,108520.0,108510.0,0.15129712]
[1756480521902,0.91446677,108520.0,108510.0,0.15642712]
[1756480522554,0.90964593,108520.0,108510.0,0.15642712]
[1756480522781,0.90964593,108520.0,108510.0,0.15129712]
[1756480522961,0.90964593,108520.0,108510.0,0.15642712]
[1756480523187,0.54660537,108530.0,108520.0,0.18429782]
[1756480523352,0.54660537,108530.0,108520.0,0.18942782]
[1756480523353,0.02246665,108530.0,108520.0,0.18942782]
[1756480523712,0.00014327,108530.0,108520.0,0.18942782]
[1756480523917,0.00014327,108530.0,108520.0,0.29866296]
[1756480524158,0.00014327,108530.0,108520.0,1.20658889]
[1756480524342,0.07092,108570.0,108560.0,0.18422991]
[1756480524516,0.07092,108570.0,108560.0,0.17822939]
[1756480524517,0.92782598,108570.0,108560.0,0.17822939]
[1756480524717,1.43423221,108570.0,108560.0,0.17822939]
[1756480524897,0.18630628,108570.0,108560.0,0.17822939]
[1756480525098,0.91001926,108570.0,108560.0,0.17822939]
[1756480525730,0.36459291,108570.0,108560.0,0.17822939]
[1756480525978,0.93251884,108570.0,108560.0,0.17822939]
[1756480526170,1.11673179,108570.0,108560.0,0.17822939]
[1756480526552,0.20880586,108570.0,108560.0,0.17822939]
[1756480526767,0.93056884,108570.0,108560.0,0.18335939]
[1756480526969,0.02264291,108570.0,108560.0,0.18335939]
[1756480527202,0.02264291,108570.0,108560.0,0.20529821]
[1756480527406,0.03225013,108570.0,108560.0,0.29359453]
[1756480527615,0.02582884,108570.0,108560.0,0.29359453]
[1756480528042,0.02582884,108570.0,108560.0,1.56343106]
[1756480528043,0.00870521,108570.0,108560.0,1.56343106]
[1756480528262,0.0002,108590.0,108580.0,0.18419598]
[1756480528493,0.01778894,108590.0,108580.0,0.2724923]
[1756480528706,0.01778894,108590.0,108580.0,0.6885023]
[1756480528921,1e-08,108590.0,108580.0,1.61736705]
[1756480529134,0.0002,108600.0,108590.0,0.18417902]
[1756480529347,0.0002,108600.0,108590.0,0.27555534]
[1756480529548,0.00661009,108600.0,108590.0,0.29854416]
[1756480530363,0.00660613,108600.0,108590.0,0.29854416]
[1756480531416,0.00660613,108600.0,108590.0,0.30154416]
[1756480531621,0.0002,108600.0,108590.0,0.30154416]
[1756480531852,0.0002,108600.0,108590.0,1.20947009]
[1756480532059,1e-08,108600.0,108590.0,1.54947009]
[1756480532273,1e-08,108600.0,108590.0,0.64154416]
[1756480532680,1e-08,108600.0,108590.0,1.59947009]
[1756480532879,1e-08,108600.0,108590.0,1.64947009]
[1756480533095,1e-08,108610.0,108600.0,0.54510088]
[1756480533302,0.00014322,108610.0,108600.0,0.6364772]
[1756480533557,0.00014322,108610.0,108600.0,1.54645313]
[1756480534184,0.0002,108620.0,108610.0,0.20508392]
[1756480534388,0.0002,108620.0,108610.0,0.36730024]
[1756480534590,0.00215,108620.0,108610.0,0.36627024]
[1756480534822,0.0002,108620.0,108610.0,0.36935024]
[1756480535054,0.0002,108620.0,108610.0,0.39703324]
[1756480536167,0.91007593,108620.0,108610.0,0.36422024]
[1756480536384,0.00215,108620.0,108610.0,0.36422024]
[1756480536607,0.00215,108620.0,108610.0,0.40500969]
[1756480536834,0.91007593,108620.0,108610.0,0.2549851]
[1756480537058,0.91007593,108620.0,108610.0,0.1881451]
[1756480537549,0.91007593,108620.0,108610.0,0.30251024]
[1756480537550,0.0002,108620.0,108610.0,0.30251024]
[1756480538206,0.0002,108620.0,108610.0,0.29951024]
[1756480538444,0.0002,108620.0,108610.0,0.29851024]
[1756480538872,0.0002,108620.0,108610.0,0.30051024]
[1756480539702,0.00215,108620.0,108610.0,0.29743024]
[1756480539910,0.00215,108620.0,108610.0,0.29851024]
[1756480539911,0.0002,108620.0,108610.0,0.29851024]
[1756480540116,0.0012,108620.0,108610.0,0.29851024]
[1756480540316,0.00315,108620.0,108610.0,0.29638024]
[1756480540526,0.00215,108620.0,108610.0,0.33887496]
[1756480541189,0.91007593,108620.0,108610.0,0.33887496]
[1756480541389,0.01063668,108620.0,108610.0,0.1871451]
[1756480541548,0.01063668,108620.0,108610.0,0.20808392]
[1756480541549,0.91856261,108620.0,108610.0,0.20808392]
[1756480541747,1.10269076,108620.0,108610.0,0.02093882]
[1756480541949,0.19339395,108600.0,108570.0,0.04142707]
[1756480542174,0.61370217,108600.0,108590.0,0.00014321]
[1756480542335,1.25109593,108600.0,108590.0,0.18432223]
[1756480542536,1.43525799,108600.0,108590.0,0.00014321]
[1756480542760,0.18417902,108590.0,108580.0,0.13833761]
[1756480542963,0.00195,108590.0,108580.0,0.13833761]
[1756480543162,0.34,108600.0,108590.0,0.18417902]
[1756480543374,0.34195,108600.0,108590.0,0.18417902]
[1756480543817,0.36383979,108600.0,108590.0,0.18417902]
[1756480544006,1.27176572,108600.0,108590.0,0.18417902]
[1756480544238,1.45592778,108600.0,108590.0,0.18417902]
[1756480544458,1.45714778,108600.0,108590.0,0.18417902]
[1756480544897,1.45714778,108600.0,108580.0,0.13833761]
[1756480545118,0.37233391,108600.0,108590.0,0.18417902]
[1756480545328,0.37233779,108600.0,108590.0,0.18417902]
[1756480545536,1.28026372,108600.0,108590.0,0.18617902]
[1756480545746,1.25837393,108600.0,108590.0,0.18617902]
[1756480545957,0.008498,108600.0,108590.0,0.21224784]
[1756480546816,0.91837393,108600.0,108590.0,0.20711784]
[1756480547061,0.012448,108600.0,108590.0,0.20716784]
[1756480547269,0.010498,108600.0,108590.0,0.21024784]
[1756480547485,1.10475599,108600.0,108590.0,0.18417902]
[1756480547688,1.10353599,108600.0,108590.0,0.18417902]
[1756480547905,1.10354655,108600.0,108590.0,0.18417902]
[1756480548116,0.01145856,108600.0,108590.0,0.18417902]
[1756480548332,0.91743887,108600.0,108590.0,0.18617902]
[1756480548543,0.91743887,108600.0,108590.0,0.20711784]
[1756480548544,0.00951294,108600.0,108590.0,0.20711784]
[1756480549889,0.00951294,108600.0,108590.0,0.24941416]
[1756480551182,0.91743887,108600.0,108590.0,0.16111784]
[1756480551610,0.00951294,108600.0,108590.0,0.16111784]
[1756480552036,0.73947134,108610.0,108600.0,0.18416206]
[1756480552247,0.75668226,108610.0,108600.0,0.18416206]
[1756480552684,0.94082736,108610.0,108600.0,0.18416206]
[1756480552860,0.96354466,108610.0,108590.0,0.14017902]
[1756480553104,0.22407332,108610.0,108590.0,0.14017902]
[1756480553312,0.22407332,108610.0,108600.0,0.18416206]
[1756480553531,0.23148493,108610.0,108600.0,0.18416206]
[1756480553944,0.23048493,108610.0,108590.0,0.14017902]
[1756480554157,0.23048493,108610.0,108590.0,0.13817902]
[1756480554365,0.57248493,108610.0,108600.0,0.18416206]
[1756480554594,1.48041086,108610.0,108600.0,0.18416206]
[1756480554807,1.48041086,108610.0,108600.0,0.18516206]
[1756480555018,1.47845912,108610.0,108600.0,0.18516206]
[1756480555231,1.47845912,108610.0,108600.0,0.001]
[1756480555447,0.38638809,108610.0,108600.0,0.18516206]
[1756480555666,1.29431402,108610.0,108600.0,0.18516206]
[1756480555886,1.48040912,108610.0,108600.0,0.18416206]
[1756480556576,0.57348319,108610.0,108600.0,0.18516206]
[1756480556784,1.48140912,108610.0,108600.0,0.18516206]
[1756480556986,1.48040912,108610.0,108600.0,0.18516206]
[1756480557406,1.48140912,108610.0,108600.0,0.17916494]
[1756480558014,0.57348319,108610.0,108600.0,0.17916494]
[1756480558138,0.38738809,108610.0,108600.0,0.17916494]
[1756480558369,1.29726402,108610.0,108600.0,0.17916494]
[1756480558589,0.02473576,108610.0,108600.0,0.36051438]
[1756480558794,0.01830141,108610.0,108600.0,1.33928031]
[1756480559017,0.01830141,108610.0,108600.0,0.43135438]
[1756480559250,0.01830141,108610.0,108600.0,0.35924008]
[1756480559659,0.01730141,108610.0,108600.0,0.35924008]
[1756480559862,0.01730141,108610.0,108600.0,0.38692508]
[1756480560280,0.01925141,108610.0,108600.0,0.29862876]
[1756480560489,0.01925141,108610.0,108600.0,0.27094376]